bitfinex/quotes_ETHUSD_20260125
["timestamp","ask_amount","ask_price","bid_price","bid_amount"]
[1769369219856,5.875721,2828.3,2825.2,13.9873401]
[1769369220088,5.602109,2827.8,2825.8,0.88469322]
[1769369220262,8.805399,2827.7,2825.3,0.10488777]
[1769369220584,0.8838729,2828.5,2826.2,0.88456261]
[1769369220751,0.87775443,2828.4,2826.4,0.10488777]
[1769369221085,0.88373572,2828.9,2826.8,0.88439224]
[1769369221278,0.88361078,2829.3,2827.1,0.10488777]
[1769369221586,0.741,2829.5,2827.6,0.10488777]
[1769369221784,0.10488777,2830.5,2827.5,12.03168302]
[1769369221956,1.0675511,2829.6,2827.5,12.03168302]
[1769369222283,0.128,2829.4,2827.0,0.741]
[1769369222483,0.128,2829.2,2826.1,12.13657079]
[1769369222784,14.720786,2828.7,2826.7,0.88441913]
[1769369222954,8.819448,2828.5,2826.2,0.88457274]
[1769369223283,0.128,2827.9,2825.7,0.741]
[1769369223493,11.274169,2827.6,2825.7,0.88471242]
[1769369223675,6.513851,2827.6,2825.6,0.88475895]
[1769369223989,6.513851,2827.6,2825.4,3.53931188]
[1769369223990,6.513851,2827.6,2825.7,0.8847194]
[1769369224287,6.513851,2827.6,2825.6,12.78587301]
[1769369224490,0.6513851,2827.5,2825.7,1.63250128]
[1769369224656,0.128,2827.7,2824.9,12.78587301]
[1769369224853,0.128,2827.5,2825.6,0.88476085]
[1769369225079,0.2335703,2827.9,2825.3,0.88484632]
[1769369225393,14.672714,2827.4,2825.2,0.8848931]
[1769369225683,1.4672714,2827.3,2825.4,0.10488777]
[1769369225891,4.997926,2827.3,2825.4,0.10488777]
[1769369226094,4.997926,2827.3,2825.0,3.53957241]
[1769369226095,0.15488777,2826.6,2824.1,12.68098524]
[1769369226386,0.10488777,2827.0,2824.4,12.78587301]
[1769369226591,0.10488777,2826.6,2824.5,13.95957254]
[1769369226891,14.261168,2825.7,2823.8,13.56631374]
[1769369227106,0.128,2825.6,2823.1,12.68098524]
[1769369227256,0.88479915,2825.5,2823.2,13.56650521]
[1769369227458,2.610577,2825.4,2823.2,13.56650521]
[1769369227683,0.34953762,2825.3,2823.3,1.72135525]
[1769369227867,0.128,2825.3,2823.3,1.72135525]
[1769369228070,0.128,2825.3,2823.1,13.56651824]
[1769369228279,2.51868,2825.2,2823.1,13.56651824]
[1769369228482,0.128,2825.3,2823.1,13.56652898]
[1769369229100,0.128,2825.2,2823.1,13.56652898]
[1769369229273,14.80317,2825.0,2823.1,12.68098524]
[1769369229479,0.128,2824.8,2823.1,13.5665169]
[1769369229662,0.98974918,2825.4,2823.1,13.5665169]
[1769369229862,6.144877,2825.3,2823.2,12.68098524]
[1769369230293,6.144877,2825.3,2823.1,0.88554465]
[1769369230497,0.128,2825.0,2822.5,12.68098524]
[1769369230698,14.001871,2824.8,2822.7,0.88565958]
[1769369230870,14.001871,2824.8,2822.6,1.34219852]
[1769369230871,0.7269929,2824.9,2823.1,0.88554702]
[1769369231200,0.10488777,2825.8,2823.3,0.10488777]
[1769369231359,3.564761,2825.6,2823.5,0.10488777]
[1769369231564,0.128,2825.6,2823.3,12.78587301]
[1769369231761,4.945466,2825.7,2823.7,12.68098524]
[1769369232768,11.242034,2825.2,2823.1,0.88554702]
[1769369232991,11.242034,2825.2,2823.0,0.88558218]
[1769369232992,10.288602,2825.2,2823.0,0.88558218]
[1769369233341,0.128,2824.4,2822.6,1.34219852]
[1769369233526,0.128,2824.6,2822.7,0.88565383]
[1769369233694,0.128,2824.6,2822.7,0.88566771]
[1769369233900,0.128,2824.6,2822.4,0.741]
[1769369233901,0.10488777,2826.9,2823.6,12.68098524]
[1769369234209,0.128,2825.9,2823.8,0.10488777]
[1769369234420,2.630626,2825.8,2823.6,12.68098524]
[1769369234635,0.128,2825.9,2823.7,0.10488777]
[1769369234845,2.628356,2825.8,2823.7,0.10488777]
[1769369234994,0.128,2825.9,2823.6,12.68098524]
[1769369235195,0.88483046,2825.4,2822.9,13.56659708]
[1769369235396,0.88480974,2825.5,2823.2,12.85487306]
[1769369235616,0.10488777,2826.4,2824.0,0.10488777]
[1769369235617,0.128,2826.2,2824.0,0.10488777]
[1769369235794,0.128,2826.0,2823.9,12.74998529]
[1769369235991,0.8845487,2826.3,2824.0,1.39037508]
[1769369236295,2.411108,2826.3,2824.2,0.10488777]
[1769369237105,0.128,2826.1,2824.0,1.28548731]
[1769369237302,2.04673,2825.8,2824.0,1.28548731]
[1769369237503,3.727853,2825.8,2824.0,1.28548731]
[1769369237702,0.46125269,2825.7,2824.1,1.4920756]
[1769369238051,6.044659,2825.8,2824.1,1.4920756]
[1769369238234,6.044659,2825.8,2823.6,0.88537718]
[1769369238542,0.8846739,2825.9,2824.0,0.88526386]
[1769369238720,0.88445482,2826.6,2824.1,12.85487306]
[1769369239051,0.10488777,2827.0,2824.5,12.85487306]
[1769369239248,0.88527155,2827.2,2825.1,0.10488777]
[1769369239568,0.466934,2827.1,2825.3,0.10488777]
[1769369239854,0.001,2827.2,2825.1,12.74998529]
[1769369240062,17.308566,2827.1,2825.1,12.74998529]
[1769369240217,3.419707,2827.1,2825.1,12.74998529]
[1769369240412,0.001,2827.2,2825.1,12.74998529]
[1769369240634,0.129,2827.2,2825.1,12.74998529]
[1769369240835,0.001,2827.2,2825.4,0.10488777]
[1769369241156,3.478145,2827.1,2825.4,12.74998529]
[1769369241333,3.478145,2827.1,2825.2,1.37398288]
[1769369241334,11.236082,2826.9,2825.2,1.37398288]
[1769369241533,0.88432967,2827.0,2824.7,12.74998529]
[1769369241534,2.083766,2826.7,2824.7,13.63502806]
[1769369241730,0.128,2826.6,2824.0,0.741]
[1769369241934,0.128,2826.6,2824.6,0.88506129]
[1769369242269,2.046936,2826.5,2824.5,0.88509088]
[1769369242466,22.350292,2826.3,2824.0,0.741]
[1769369242768,2.25831798,2826.2,2824.6,0.88508017]
[1769369243062,0.128,2826.7,2824.6,0.88505927]
[1769369243063,0.128,2826.5,2824.6,0.88505927]
[1769369243267,0.8845174,2826.4,2824.5,0.8851124]
[1769369243595,3.64220648,2827.1,2824.5,0.8851124]
[1769369243596,0.88429839,2827.1,2825.1,0.10488777]
[1769369243731,0.88429839,2827.1,2824.9,12.85487306]
[1769369243936,0.44224765,2827.0,2825.3,0.10488777]
[1769369244233,0.44224765,2827.0,2825.1,12.74998529]
[1769369245352,0.88405263,2827.9,2826.4,12.74998529]
[1769369245558,0.10488777,2828.6,2826.4,12.74998529]
[1769369245559,0.88403618,2828.0,2826.4,12.74998529]
[1769369245763,0.10488777,2827.3,2825.6,13.63475312]
[1769369245979,0.10488777,2826.9,2825.6,12.74998529]
[1769369246304,0.10488777,2828.1,2825.7,14.11346191]
[1769369246875,0.10488777,2828.2,2825.7,14.11346191]
[1769369247374,0.10488777,2827.7,2825.9,12.74998529]
[1769369247582,0.10488777,2827.3,2825.9,12.74998529]
[1769369247735,0.10488777,2827.3,2826.0,1.36346905]
[1769369247940,0.10488777,2827.3,2825.3,0.002]
[1769369247941,0.10488777,2826.9,2825.3,0.002]
[1769369248371,0.10488777,2826.9,2825.5,0.88479708]
[1769369248535,0.10488777,2826.9,2825.6,0.88476666]
[1769369248872,0.001,2827.0,2825.7,0.88472105]
[1769369249087,0.001,2827.0,2825.8,0.44236672]
[1769369249370,0.001,2827.0,2825.8,1.32706077]
[1769369249571,0.23288777,2828.0,2825.9,12.74998529]
[1769369249572,0.10488777,2827.9,2825.9,12.74998529]
[1769369249738,0.10488777,2827.5,2825.9,12.74998529]
[1769369251035,0.10488777,2827.9,2825.9,12.74998529]
[1769369251231,0.23288777,2828.7,2825.8,0.88469405]
[1769369251232,0.98868898,2828.7,2826.1,12.74998529]
[1769369251468,0.98868898,2828.7,2826.3,13.63453399]
[1769369251666,0.45237618,2828.6,2826.5,12.74998529]
[1769369251836,0.10488777,2829.2,2826.5,12.74998529]
[1769369252246,0.001,2829.4,2827.1,12.74998529]
[1769369252738,0.001,2829.4,2827.3,12.74998529]
[1769369253162,0.001,2829.4,2827.6,12.24221888]
[1769369253472,0.001,2829.4,2827.9,0.88404823]
[1769369253671,0.001,2829.4,2827.8,13.12627802]
[1769369254071,0.10488777,2829.3,2827.7,1.23471066]
[1769369254269,0.001,2829.4,2827.3,12.24221888]
[1769369254678,0.10488777,2828.9,2827.3,12.24221888]
[1769369254878,0.10488777,2828.9,2827.5,0.88415907]
[1769369255050,0.10488777,2828.9,2826.9,3.53744171]
[1769369255245,0.10488777,2828.9,2827.1,0.88427806]
[1769369255572,0.88376696,2828.8,2827.0,3.53731144]
[1769369255771,0.45236109,2828.7,2827.1,0.44216411]
[1769369255978,0.45236109,2828.7,2826.9,0.8843455]
[1769369256166,0.9886437,2828.9,2826.9,0.8843455]
[1769369256369,0.88364201,2829.2,2826.9,13.12656438]
[1769369256883,0.10488777,2829.3,2827.2,12.24221888]
[1769369257059,4.985,2829.2,2827.2,12.24221888]
[1769369257560,5.86865005,2829.2,2827.3,0.88423584]
[1769369257749,0.59735378,2829.1,2827.4,0.44211792]
[1769369258154,9.784132,2829.0,2827.4,0.44211792]
[1769369258355,0.59735378,2829.1,2827.2,0.98915407]
[1769369258561,0.59735378,2829.1,2827.2,0.8842663]
[1769369258778,0.59735378,2829.1,2827.2,13.12648518]
[1769369258983,4.967539,2829.2,2827.3,12.34710665]
[1769369259181,0.001,2829.4,2827.6,12.24221888]
[1769369259383,0.001,2829.4,2827.7,12.34710665]
[1769369259550,0.001,2829.4,2827.7,13.08810665]
[1769369259750,0.001,2829.4,2827.9,12.24221888]
[1769369259957,0.001,2829.4,2828.0,1.31262984]
[1769369260158,0.001,2829.4,2827.7,0.741]
[1769369260159,0.001,2828.6,2827.7,0.741]
[1769369261081,0.001,2828.6,2827.7,1.62510943]
[1769369261282,0.001,2829.4,2827.7,13.86732831]
[1769369261855,0.001,2829.4,2827.7,13.97221608]
[1769369262983,0.001,2829.4,2827.7,0.741]
[1769369263367,0.22505011,2829.6,2827.7,0.741]
[1769369263895,0.10488777,2829.1,2827.0,12.24221888]
[1769369264087,4.015085,2829.0,2827.1,2.1085199]
[1769369264295,3.207008,2829.0,2827.1,2.1085199]
[1769369264489,3.846,2829.4,2827.5,0.88415856]
[1769369264490,0.128,2829.4,2827.5,0.88415856]
[1769369264865,6.401018,2829.4,2827.3,0.88421858]
[1769369265055,0.72845663,2829.3,2827.4,1.31264375]
[1769369265258,0.88354833,2829.5,2827.4,2.19684621]
[1769369265259,1.0,2829.2,2827.4,2.19684621]
[1769369266472,0.88367325,2829.1,2827.4,1.31264375]
[1769369266673,0.88367325,2829.1,2827.4,2.19683906]
[1769369266973,0.88367325,2829.1,2827.4,1.31264375]
[1769369267373,0.88367325,2829.1,2827.4,2.19684272]
[1769369267586,0.54183663,2829.0,2827.5,0.5733765]
[1769369267962,0.54183663,2829.0,2827.4,1.31264375]
[1769369268166,0.54183663,2829.0,2827.4,2.19683078]
[1769369268371,0.88367325,2829.1,2827.4,2.19683078]
[1769369268669,0.88366071,2829.2,2827.4,14.43904966]
[1769369268999,0.23288777,2829.4,2827.4,14.43904966]
[1769369269000,0.98849054,2829.4,2827.4,14.43904966]
[1769369269575,0.98849054,2829.4,2827.4,14.54393743]
[1769369269765,0.45226859,2829.3,2827.5,14.05029452]
[1769369270189,5.098356,2829.8,2827.9,12.24221888]
[1769369270390,1.0,2829.4,2828.0,0.10488777]
[1769369270567,1.0,2829.4,2828.2,0.88395445]
[1769369271276,1.0,2829.4,2828.1,13.12619315]
[1769369271695,0.001,2829.2,2828.1,13.12619315]
[1769369272001,0.001,2829.2,2828.2,13.90844121]
[1769369272308,0.88347438,2829.8,2828.2,13.90844121]
[1769369272492,0.88338007,2830.1,2828.4,12.24221888]
[1769369272808,7.696876,2830.5,2828.4,12.24221888]
[1769369273112,7.264629,2830.3,2828.5,1.22422189]
[1769369273297,2.388517,2830.3,2828.5,1.22422189]
[1769369274190,2.01599,2830.3,2828.5,13.46644077]
[1769369274828,0.8833298,2830.2,2828.5,14.35030144]
[1769369275105,0.8833298,2830.2,2828.5,13.46644077]
[1769369275307,0.4416649,2830.1,2828.5,1.22422189]
[1769369275505,0.4416649,2830.1,2828.1,0.88396419]
[1769369275686,0.128,2830.0,2828.1,0.88396564]
[1769369275882,0.128,2830.0,2828.0,12.24221888]
[1769369275883,8.363854,2829.9,2828.0,13.12621973]
[1769369276097,6.416427,2829.9,2827.9,0.741]
[1769369276289,6.416427,2829.9,2827.9,1.62503117]
[1769369276497,6.709921,2829.7,2827.9,0.741]
[1769369276808,0.8835171,2829.6,2827.9,0.741]
[1769369276979,0.8835171,2829.6,2827.9,1.62504508]
[1769369277384,0.8835171,2829.6,2827.9,13.97215173]
[1769369277677,0.128,2829.5,2827.9,0.741]
[1769369278935,0.88357955,2829.4,2827.9,0.741]
[1769369279117,0.44178062,2829.4,2827.9,0.741]
[1769369279317,0.88353701,2829.6,2828.1,12.24221888]
[1769369280111,9.223412,2829.5,2827.9,0.741]
[1769369280303,9.223412,2829.5,2827.5,14.05029452]
[1769369280304,13.252258,2829.4,2827.5,1.80807564]
[1769369280500,0.128,2829.5,2827.5,13.12638592]
[1769369280700,0.88353701,2829.6,2828.0,0.10488777]
[1769369281005,1.01139222,2830.0,2828.2,0.10488777]
[1769369281204,1.01139222,2830.0,2828.2,12.24221888]
[1769369281503,0.18302793,2830.6,2828.7,12.34710665]
[1769369281702,0.18302793,2830.6,2828.8,1.23471067]
[1769369281703,1.0662371,2830.6,2828.8,1.23471067]
[1769369282002,1.0662371,2830.6,2828.4,12.24221888]
[1769369282232,3.402426,2830.5,2828.4,12.24221888]
[1769369282606,2.457821,2830.4,2828.4,12.24221888]
[1769369282798,11.9544862,2830.1,2827.6,0.88412317]
[1769369283004,3.718,2829.5,2827.4,13.12642344]
[1769369283234,20.248985,2829.3,2827.5,1.66632513]
[1769369283400,3.759516,2829.2,2827.5,1.66632513]
[1769369283737,7.477516,2829.2,2827.5,1.66632513]
[1769369284028,3.718,2829.2,2828.3,0.002]
[1769369284801,0.23288777,2829.7,2828.3,0.002]
[1769369285001,5.630406,2829.2,2828.3,0.002]
[1769369285550,1.01154833,2829.5,2828.3,0.002]
[1769369285838,0.88354833,2829.5,2828.3,0.002]
[1769369286007,0.128,2829.4,2828.3,0.002]
[1769369286440,11.331426,2829.3,2827.4,12.24221888]
[1769369286622,1.1459426,2829.2,2827.5,1.22422189]
[1769369286825,3.97024,2829.3,2827.5,13.51781012]
[1769369287026,0.88364201,2829.2,2827.5,13.51781012]
[1769369288004,3.53431823,2829.5,2827.8,12.398476]
[1769369288212,1.27861824,2829.6,2827.9,12.398476]
[1769369288408,0.001,2830.3,2828.3,12.398476]
[1769369288409,0.8843298,2830.3,2828.3,12.398476]
[1769369288724,0.128,2830.1,2828.4,12.3289439]
[1769369288928,0.128,2830.1,2828.3,0.10488777]
[1769369288929,1.01137489,2830.1,2828.5,13.17744893]
[1769369289238,0.88337489,2830.1,2828.5,12.29358823]
[1769369289533,0.88337489,2830.1,2828.0,1.2398476]
[1769369289736,0.88337489,2830.1,2827.4,0.88420052]
[1769369289737,0.128,2829.7,2827.4,0.88420052]
[1769369289938,0.128,2829.5,2827.6,3.5365652]
[1769369290240,8.228872,2829.9,2827.9,12.29358823]
[1769369290541,4.105662,2829.9,2827.9,12.29358823]
[1769369290736,0.128,2829.6,2827.6,0.88413006]
[1769369291043,0.88357955,2829.4,2827.6,12.29358823]
[1769369291203,0.88357955,2829.4,2827.1,0.10488777]
[1769369291204,6.62437,2829.3,2827.2,0.88424507]
[1769369291407,6.62437,2829.3,2827.1,12.29358823]
[1769369291408,0.10488777,2829.2,2827.1,12.29358823]
[1769369291638,9.867851,2829.1,2827.1,12.29358823]
[1769369291847,0.10488777,2828.8,2826.9,0.743]
[1769369292148,9.245122,2828.5,2826.9,0.743]
[1769369292443,7.563517,2828.5,2826.9,0.743]
[1769369292804,0.10488777,2828.0,2826.9,0.002]
[1769369293004,0.10488777,2828.0,2825.8,0.10488777]
[1769369293005,1.41049832,2827.9,2825.8,0.10488777]
[1769369293231,3.926298,2827.6,2825.7,12.29358823]
[1769369293464,7.881854,2827.6,2825.7,12.29358823]
[1769369293836,6.101434,2827.6,2825.7,13.17832094]
[1769369294165,0.128,2827.7,2825.7,12.29358823]
[1769369294166,3.226615,2827.5,2825.7,12.29358823]
[1769369294464,0.3226615,2827.4,2825.9,1.23265882]
[1769369294634,0.128,2827.7,2825.9,1.23265882]
[1769369294635,19.941681,2827.7,2825.9,1.23265882]
[1769369294838,18.941681,2827.7,2825.9,1.23265882]
[1769369295034,10.61415502,2827.6,2825.9,2.11732395]
[1769369295241,3.426916,2827.5,2825.9,1.23265882]
[1769369295665,3.426916,2827.5,2825.9,0.003]
[1769369296568,3.53180377,2827.5,2825.9,0.003]
[1769369296743,0.128,2827.2,2826.1,0.002]
[1769369297156,0.88432967,2827.0,2826.1,0.002]
[1769369297454,0.44216484,2826.9,2826.1,0.002]
[1769369297647,3.171026,2826.8,2825.9,0.005]
[1769369297832,0.44216484,2826.9,2825.9,0.005]
[1769369298264,0.88420456,2827.4,2825.9,0.005]
[1769369298490,3.53681827,2827.5,2825.9,11.97674557]
[1769369298491,4.813914,2827.5,2825.9,11.97674557]
[1769369298639,0.88414202,2827.6,2825.9,11.97674557]
[1769369299335,3.53622434,2827.9,2825.9,12.86141806]
[1769369299772,0.88398571,2828.1,2826.1,0.10488777]
[1769369299971,4.393709,2827.9,2826.2,11.97174557]
[1769369300335,12.10606842,2827.8,2825.9,0.005]
[1769369300535,0.128,2827.4,2825.9,0.005]
[1769369301070,5.41071,2827.3,2825.9,0.005]
[1769369301337,0.88426711,2827.2,2825.9,0.005]
[1769369301550,0.44213356,2827.1,2825.9,0.005]
[1769369302151,0.44213356,2827.1,2825.6,11.97174557]
[1769369303380,0.88432967,2827.0,2825.3,0.002]
[1769369303587,6.985726,2826.9,2825.3,0.002]
[1769369303880,0.88432967,2827.0,2825.3,0.002]
[1769369304038,6.013564,2826.8,2825.3,0.002]
[1769369305555,0.88442353,2826.7,2825.3,0.002]
[1769369305758,0.88442353,2826.7,2825.4,11.97174557]
[1769369306675,0.88432967,2827.0,2825.4,11.97174557]
[1769369306973,0.7,2826.7,2825.3,0.002]
[1769369307567,0.88445482,2826.6,2825.3,0.002]
[1769369309883,0.88445482,2826.6,2825.5,0.002]
[1769369310386,3.030897,2826.5,2825.5,0.002]
[1769369311588,0.8845174,2826.4,2825.5,0.002]
[1769369311803,0.4422587,2826.3,2825.5,0.002]
[1769369312405,0.4422587,2826.3,2825.3,0.002]
[1769369312969,0.4422587,2826.3,2825.0,0.002]
[1769369313571,0.88458,2826.2,2825.0,0.002]
[1769369317694,0.88458,2826.2,2824.2,4.28170035]
[1769369317695,3.9805787,2826.3,2824.2,0.741]
[1769369317696,12.57796402,2826.0,2824.2,0.741]
[1769369317896,15.888898,2825.6,2824.1,0.002]
[1769369318096,0.128,2825.4,2824.1,0.002]
[1769369318322,16.04203722,2825.9,2824.1,0.002]
[1769369318622,0.128,2825.8,2824.1,12.27287185]
[1769369318823,2.226,2825.7,2824.3,12.27087185]
[1769369318988,0.128,2825.8,2824.3,12.27087185]
[1769369319323,0.128,2826.1,2824.5,12.27087185]
[1769369319491,0.128,2826.1,2824.5,13.15596729]
[1769369319689,0.128,2826.1,2824.3,3.54063809]
[1769369319690,0.8846426,2826.0,2824.7,12.27087185]
[1769369319917,5.968958,2825.8,2824.2,13.49815904]
[1769369320111,4.118007,2825.8,2824.2,14.38334936]
[1769369320316,0.4551213,2825.9,2824.5,12.27087185]
[1769369320517,0.88461743,2826.1,2824.6,13.15593478]
[1769369320722,0.88461743,2826.1,2824.6,12.27087185]
[1769369321189,0.88461743,2826.1,2824.2,1.22728719]
[1769369321190,2.973,2826.0,2824.2,1.22728719]
[1769369321395,3.227,2826.0,2824.3,13.15604285]
[1769369321703,3.251,2826.1,2824.5,12.27087185]
[1769369322100,3.251,2826.1,2824.1,0.002]
[1769369322101,16.42396402,2826.0,2824.1,0.002]
[1769369322305,0.128,2825.8,2824.7,0.002]
[1769369322908,3.983824,2825.7,2824.7,0.002]
[1769369323132,2.166,2825.5,2824.7,0.002]
[1769369323296,1.1111824,2825.6,2824.7,0.002]
[1769369323501,7.00583,2825.5,2824.7,0.002]
[1769369323914,0.88483046,2825.4,2824.7,0.002]
[1769369324796,3.53929611,2825.5,2824.7,0.002]
[1769369324797,1.58478398,2825.6,2824.7,0.002]
[1769369325900,12.560283,2825.5,2824.7,0.002]
[1769369326102,2.403,2825.5,2824.7,0.002]
[1769369326296,1.58478398,2825.6,2824.7,0.002]
[1769369326297,0.3987784,2825.4,2824.7,0.002]
[1769369326502,7.874987,2825.5,2824.5,0.002]
[1769369326824,4.896872,2825.5,2824.5,0.001]
[1769369327034,4.035689,2825.5,2824.5,0.001]
[1769369327899,0.88486178,2825.3,2824.1,0.00100294]
[1769369328925,6.51995,2825.2,2824.1,0.00100294]
[1769369329119,0.74048118,2825.1,2824.1,0.00100294]
[1769369329316,3.042,2825.2,2824.1,0.00100294]
[1769369329521,0.128,2825.1,2824.1,0.00100294]
[1769369329837,17.976274,2824.9,2823.9,0.001]
[1769369330015,0.88504973,2824.7,2823.3,12.27087577]
[1769369330213,4.323093,2824.6,2823.3,12.27087577]
[1769369330423,0.52081427,2824.5,2823.3,12.27087577]
[1769369330733,9.213093,2824.6,2823.3,3.92e-06]
[1769369330951,6.830093,2824.6,2823.1,12.26402527]
[1769369332006,0.8851124,2824.5,2822.9,0.002]
[1769369332206,2.024093,2824.4,2822.9,12.27287185]
[1769369332628,0.8851124,2824.5,2822.9,12.27287185]
[1769369332827,0.4425562,2824.4,2823.0,13.58672303]
[1769369333036,8.08239215,2825.1,2823.0,13.58672303]
[1769369333037,3.53961867,2825.2,2823.1,13.15641375]
[1769369333236,0.128,2824.9,2823.1,13.15641375]
[1769369333419,0.128,2824.9,2823.1,13.26130152]
[1769369333904,0.10488777,2823.2,2821.3,12.27087185]
[1769369334105,0.84688777,2823.1,2821.3,12.27087185]
[1769369334405,1.71898527,2823.2,2821.8,12.27287185]
[1769369334608,0.88547531,2823.4,2821.8,12.27287185]
[1769369334803,4.41461054,2824.1,2821.8,12.27287185]
[1769369335017,0.88530047,2823.9,2821.8,12.27187381]
[1769369335219,0.742,2823.8,2823.3,0.001]
[1769369335439,1.62730047,2823.9,2822.2,12.26887479]
[1769369335738,3.181551,2824.0,2822.4,12.27087185]
[1769369335936,2.684551,2824.0,2822.4,12.27087185]
[1769369336137,0.88530047,2823.9,2822.4,12.27087185]
[1769369336316,6.221095,2823.8,2822.4,12.27087185]
[1769369336515,6.736098,2823.8,2822.4,12.27087185]
[1769369336732,0.83633985,2823.7,2822.4,12.27087185]
[1769369336934,0.88520643,2824.2,2822.4,13.15663179]
[1769369337642,7.68605,2824.1,2822.4,12.27087185]
[1769369337866,6.25619,2824.1,2822.4,13.15662368]
[1769369338062,3.64571349,2824.3,2822.4,13.15662368]
[1769369338063,0.128,2824.3,2822.4,13.15662368]
[1769369338262,4.668838,2824.2,2822.4,13.15662368]
[1769369338426,0.4796838,2824.1,2822.6,12.27087185]
[1769369338757,4.681238,2824.2,2822.6,12.27087185]
[1769369339359,3.54057498,2824.6,2822.6,12.27087185]
[1769369339360,0.88508107,2824.6,2822.6,12.27087185]
[1769369340024,0.128,2824.6,2822.8,12.27087185]
[1769369341175,3.54030299,2824.7,2822.5,1.66997155]
[1769369341176,12.57796402,2824.4,2822.5,1.66997155]
[1769369341375,0.128,2824.3,2822.5,12.27087185]
[1769369341665,0.88504973,2824.7,2822.7,12.27087185]
[1769369341865,0.128,2825.0,2822.9,12.27087185]
[1769369342033,0.128,2824.8,2823.1,12.27087185]
[1769369342229,0.128,2824.8,2823.1,13.15641187]
[1769369342465,0.128,2824.8,2823.1,13.15640666]
[1769369342671,3.53978469,2825.1,2823.2,0.10488777]
[1769369342972,10.19784,2825.5,2823.5,12.27087185]
[1769369343132,0.57780229,2825.1,2823.6,14.17662438]
[1769369343531,0.128,2825.2,2823.6,14.17662438]
[1769369344141,0.88483046,2825.4,2823.8,12.94953719]
[1769369344474,0.5,2825.0,2823.8,12.94953719]
[1769369344671,0.5,2825.0,2824.0,12.94953719]
[1769369344826,0.5,2825.0,2824.2,12.94953719]
[1769369345032,3.53873941,2825.9,2824.2,12.94953719]
[1769369345531,5.88566356,2826.0,2824.4,12.94953719]
[1769369346079,5.88565764,2826.0,2824.4,12.94953719]
[1769369346277,5.001,2826.0,2824.6,12.94953719]
[1769369346459,5.001,2826.0,2824.7,14.33300215]
[1769369346460,6.38575436,2826.0,2824.7,14.33300215]
[1769369346654,5.5011,2826.0,2824.7,14.33300215]
[1769369346846,0.001,2825.8,2824.7,14.33300215]
[1769369347175,0.001,2825.8,2824.2,3.54076149]
[1769369347176,0.001,2825.8,2824.2,0.8852051]
[1769369347557,0.001,2825.8,2824.4,0.8851394]
[1769369347759,0.001,2825.8,2824.5,0.44258105]
[1769369348480,0.001,2825.8,2824.5,14.27721026]
[1769369348680,0.001,2825.8,2824.5,13.39211824]
[1769369349954,0.001,2825.8,2824.1,2.26486312]
[1769369350152,0.001,2825.8,2824.2,0.88518359]
[1769369350385,0.88570521,2825.8,2824.3,13.83470594]
[1769369350590,0.001,2825.8,2824.3,12.94953719]
[1769369351364,0.57880229,2825.8,2824.3,12.94953719]
[1769369351559,0.19634903,2825.7,2824.3,14.33300932]
[1769369352095,4.41461054,2825.5,2823.3,12.94953719]
[1769369352296,2.77587,2825.3,2823.3,13.69153719]
[1769369352497,0.8848931,2825.2,2823.3,13.69153719]
[1769369352700,11.81063755,2824.9,2822.2,12.94953719]
[1769369352886,4.217914,2824.6,2822.4,0.88575472]
[1769369353065,0.128,2824.3,2822.3,14.99717969]
[1769369353299,9.275356,2824.1,2822.3,14.99717969]
[1769369353489,11.30049154,2824.0,2822.3,0.742]
[1769369353683,7.744119,2824.0,2822.3,0.742]
[1769369353984,11.70574978,2824.1,2822.3,0.742]
[1769369354206,0.128,2824.1,2822.5,0.88573718]
[1769369354407,6.365794,2823.9,2822.3,13.69153719]
[1769369354614,0.72510631,2823.8,2822.3,2.11135372]
[1769369354814,5.920444,2823.9,2822.3,0.742]
[1769369355005,4.956544,2823.9,2822.3,0.742]
[1769369355817,0.5,2823.7,2822.3,0.742]
[1769369356517,0.88539453,2823.6,2822.3,0.742]
[1769369357689,34.12882916,2823.2,2822.1,0.002]
[1769369357893,22.350292,2823.0,2821.8,0.00100196]
[1769369358210,20.012412,2823.0,2820.8,0.88626406]
[1769369358411,20.012412,2823.0,2820.9,12.70401105]
[1769369358412,0.128,2823.0,2820.9,12.70401105]
[1769369358626,0.88564545,2822.8,2822.5,0.001]
[1769369358826,0.44282273,2822.7,2822.3,0.002]
[1769369359120,0.44282273,2822.7,2821.1,0.002]
[1769369359492,0.44282273,2822.7,2821.1,11.81978508]
[1769369359728,0.44282273,2822.7,2821.1,0.002]
[1769369360232,2.919163,2822.6,2821.1,0.002]
[1769369360418,0.10488777,2822.3,2820.4,0.742]
[1769369360601,2.051695,2821.9,2820.2,13.18357365]
[1769369360791,5.073974,2821.9,2820.2,13.18357365]
[1769369360993,3.54321466,2822.3,2820.6,11.81778508]
[1769369361189,0.5,2822.4,2820.8,11.92267285]
[1769369361507,0.88577488,2822.4,2820.8,11.81778508]
[1769369362129,0.88577488,2822.4,2820.7,1.19226729]
[1769369362310,0.88577488,2822.4,2820.6,0.742]
[1769369362311,2.884024,2822.3,2820.6,0.742]
[1769369362628,0.88583374,2822.2,2820.6,0.742]
[1769369363130,0.88583374,2822.2,2820.3,0.88642029]
[1769369363131,6.386948,2822.1,2820.3,0.88642029]
[1769369363291,6.386948,2822.1,2820.2,13.18357365]
[1769369363292,0.128,2822.0,2820.2,13.18357365]
[1769369363499,0.128,2822.0,2820.3,1.31835737]
[1769369363722,0.128,2822.0,2820.2,1.36578857]
[1769369364320,0.128,2822.1,2820.2,1.36578857]
[1769369364497,0.128,2821.9,2820.2,1.36578857]
[1769369364696,0.88595931,2821.8,2820.2,1.36578857]
[1769369364892,3.54245148,2823.0,2820.5,0.10488777]
[1769369365098,3.54245148,2823.0,2820.6,11.81778508]
[1769369365099,4.173275,2822.7,2820.6,11.81778508]
[1769369365634,4.965,2822.6,2820.6,11.81778508]
[1769369365840,0.39911516,2822.8,2821.0,11.81778508]
[1769369365999,0.39911516,2822.8,2820.7,0.84688777]
[1769369366000,0.10488777,2823.4,2821.4,11.81778508]
[1769369366200,0.5,2822.5,2820.9,11.81778508]
[1769369366429,0.5,2822.5,2820.6,0.742]